[Event "84th ESP-ch 2019"]
[Site "Marbella"]
[Date "2019.11.20"]
[Round "5.26"]
[White "Mingarro Carceller, Sergi"]
[Black "Sosa Suarez, Carla Cristina"]
[Result "1-0"]
[ECO "C07"]
[WhiteElo "2329"]
[BlackElo "2022"]
[Annotator "ChessBase"]
[PlyCount "101"]
[EventDate "2019.11.16"]
[EventType "swiss"]
[EventCountry "ESP"]
[SourceTitle "playchess.com"]
[Source "ChessBase"]
[SourceQuality "1"]
[TimeControl "5400+30"]

1. e4 {[%emt 0:01:19]} e6 {[%emt 0:00:00]} 2. d4 {[%emt 0:00:07]} d5 {[%emt 0:00:00]} 3. Nd2 {[%emt 0:00:08]} c5 {[%emt 0:00:00]} 4. exd5 {[%emt 0:00:29]} Qxd5 {[%emt 0:00:22]} 5. Ngf3 {[%emt 0:00:17]} cxd4 {[%emt 0:01:30]} 6. Bc4 {[%emt 0:00:15]} Qd6 {[%emt 0:00:10]} 7. O-O {[%emt 0:00:35]} Nf6 {[%emt 0:00:40]} 8. Nb3 {[%emt 0:00:43]} Nc6 {[%emt 0:00:32]} 9. Nbxd4 {[%emt 0:00:33]} Nxd4 {[%emt 0:00:20]} 10. Nxd4 {[%emt 0:00:10]} a6 {[%emt 0:00:45]} 11. Re1 {[%emt 0:00:49]} Bd7 {[%emt 0:05:44]} 12. c3 {[%emt 0:07:40]} Qc7 {[%emt 0:03:12]} 13. Qe2 {[%emt 0:05:10]} Bd6 {[%emt 0:17:45]} 14. Bg5 {[%emt 0:24:12]} O-O-O {[%emt 0:04:31]} 15. h3 {[%emt 0:02:06]} h6 {[%emt 0:03:54]} 16. Be3 {[%emt 0:01:05]} Kb8 {[%emt 0:16:43]} 17. a4 {[%emt 0:05:49]} Nd5 {[%emt 0:04:51]} 18. Bxd5 {[%emt 0:05:35]} exd5 {[%emt 0:00:04]} 19. a5 {[%emt 0:03:28]} Rde8 {[%emt 0:05:05]} 20. Qf3 {[%emt 0:02:53]} f5 {[%emt 0:08:29]} 21. Nc2 {[%emt 0:13:21]} f4 22. Bb6 {[%emt 0:00:30]} Qc4 23. Red1 {[%emt 0:00:30]} Re4 24. Rd2 {[%emt 0:00:30]} Rhe8 25. Rad1 {[%emt 0:00:30]} Ba4 26. Rd4 {[%emt 0:00:30]} Qc6 27. R4d2 {[%emt 0:00:30]} Bxc2 28. Rxc2 {[%emt 0:00:30]} Re1+ 29. Kh2 {[%emt 0:00:30]} Qb5 30. Qxd5 {[%emt 0:00:30]} Qxd5 31. Rxd5 {[%emt 0:00:30]} Be5 32. Rcd2 {[%emt 0:00:30]} f3+ 33. g3 {[%emt 0:00:30]} Bc7 34. Rd7 {[%emt 0:00:30]} Bxb6 35. axb6 {[%emt 0:00:30]} Kc8 36. Rc7+ {[%emt 0:00:30]} Kb8 37. Rdd7 {[%emt 0:00:30]} R1e2 38. Rxb7+ {[%emt 0:00:30]} Ka8 39. Ra7+ {[%emt 0:00:30]} Kb8 40. Rab7+ {[%emt 0:00:30]} Kc8 41. g4 {[%emt 0:00:30]} Rxf2+ 42. Kg3 {[%emt 0:00:30]} Rxb2 43. Kxf3 {[%emt 0:00:30]} Rf8+ 44. Ke3 {[%emt 0:00:30]} Rb3 45. Kd3 {[%emt 0:00:30]} Rf3+ 46. Ke4 {[%emt 0:00:30]} Rfxc3 47. Rxg7 {[%emt 0:00:30]} Rb4+ 48. Kd5 {[%emt 0:00:30]} Rd3+ 49. Kc5 {[%emt 0:00:30]} Rb5+ 50. Kc4 {[%emt 0:00:30]} Rd8 51. Rgc7# 1-0

[Event "84th ESP-ch 2019"]
[Site "Marbella"]
[Date "2019.11.20"]
[Round "5.27"]
[White "Gomez Dieguez, David"]
[Black "Carbonell Bofill, Carlos Eloy"]
[Result "1-0"]
[ECO "C11"]
[WhiteElo "2336"]
[BlackElo "2098"]
[Annotator "ChessBase"]
[PlyCount "77"]
[EventDate "2019.11.16"]
[EventType "swiss"]
[EventCountry "ESP"]
[SourceTitle "playchess.com"]
[Source "ChessBase"]
[SourceQuality "1"]
[TimeControl "5400+30"]

1. e4 {[%emt 0:00:00]} e6 {[%emt 0:00:00]} 2. d4 {[%emt 0:00:00]} d5 {[%emt 0:00:00]} 3. Nc3 {[%emt 0:00:00]} Nf6 {[%emt 0:00:00]} 4. e5 {[%emt 0:00:00]} Nfd7 {[%emt 0:00:00]} 5. f4 {[%emt 0:00:00]} c5 {[%emt 0:00:00]} 6. Nf3 {[%emt 0:00:00]} Nc6 {[%emt 0:00:00]} 7. Be3 {[%emt 0:00:00]} Qb6 {[%emt 0:01:12]} 8. Na4 {[%emt 0:00:06]} Qa5+ {[%emt 0:00:02]} 9. c3 {[%emt 0:00:10]} b6 {[%emt 0:00:20]} 10. Bd2 {[%emt 0:08:55]} c4 {[%emt 0:03:12]} 11. b4 {[%emt 0:02:47]} Qa6 {[%emt 0:00:06]} 12. Be2 {[%emt 0:02:44]} g6 {[%emt 0:01:53]} 13. O-O {[%emt 0:00:39]} h5 {[%emt 0:00:11]} 14. f5 {[%emt 0:19:13]} exf5 {[%emt 0:01:16]} 15. Ng5 {[%emt 0:01:12]} Ndb8 {[%emt 0:05:26]} 16. Nh3 {[%emt 0:11:36]} Nd8 {[%emt 0:05:05]} 17. Bf3 {[%emt 0:03:28]} Be6 {[%emt 0:05:30]} 18. Nf4 {[%emt 0:08:30]} Qb7 {[%emt 0:00:03]} 19. Nb2 {[%emt 0:00:10]} b5 {[%emt 0:01:07]} 20. a4 {[%emt 0:00:57]} a6 {[%emt 0:03:08]} 21. axb5 {[%emt 0:01:46]} axb5 {[%emt 0:00:07]} 22. Rxa8 {[%emt 0:00:16]} Qxa8 {[%emt 0:00:01]} 23. Qa1 {[%emt 0:00:08]} Qb7 {[%emt 0:01:12]} 24. Nd1 {[%emt 0:00:49]} Bh6 {[%emt 0:00:10]} 25. Qc1 {[%emt 0:00:18]} Nd7 {[%emt 0:02:15]} 26. Nxe6 {[%emt 0:05:44]} Bxd2 {[%emt 0:00:46]} 27. Nxd8 {[%emt 0:00:06]} Bxc1 {[%emt 0:01:50]} 28. Nxb7 {[%emt 0:00:13]} Nb6 {[%emt 0:00:07]} 29. Nd6+ {[%emt 0:01:37]} Ke7 {[%emt 0:00:02]} 30. Nxb5 {[%emt 0:00:24]} Kd7 {[%emt 0:02:03]} 31. Nf2 {[%emt 0:05:09]} Bd2 {[%emt 0:01:44]} 32. Rd1 {[%emt 0:00:17]} Be3 {[%emt 0:01:39]} 33. Ra1 {[%emt 0:00:21]} g5 {[%emt 0:00:47]} 34. Ra7+ {[%emt 0:01:05]} Kc6 {[%emt 0:01:14]} 35. Nd6 {[%emt 0:01:13]} Na8 {[%emt 0:00:56]} 36. b5+ {[%emt 0:03:04]} Kb6 {[%emt 0:00:02]} 37. Ra6+ {[%emt 0:00:09]} Kc7 {[%emt 0:00:11]} 38. Bxd5 {[%emt 0:00:11]} Nb6 {[%emt 0:01:02]} 39. Ra7+ {[%emt 0:00:14]} 1-0

[Event "84th ESP-ch 2019"]
[Site "Marbella"]
[Date "2019.11.20"]
[Round "5.29"]
[White "Jimenez Ruano, Adrian"]
[Black "Lopez Guerrero, Jose Miguel"]
[Result "1-0"]
[ECO "A17"]
[WhiteElo "2269"]
[BlackElo "2085"]
[Annotator "ChessBase"]
[PlyCount "85"]
[EventDate "2019.11.16"]
[EventType "swiss"]
[EventCountry "ESP"]
[SourceTitle "playchess.com"]
[Source "ChessBase"]
[SourceQuality "1"]
[TimeControl "5400+30"]

1. Nf3 {[%emt 0:00:00]} Nf6 {[%emt 0:00:00]} 2. c4 {[%emt 0:00:00]} e6 {[%emt 0:00:08]} 3. Nc3 {[%emt 0:00:09]} Bb4 {[%emt 0:01:38]} 4. Qc2 {[%emt 0:00:40]} O-O {[%emt 0:00:27]} 5. e3 {[%emt 0:00:07]} d5 {[%emt 0:00:50]} 6. cxd5 {[%emt 0:02:41]} exd5 {[%emt 0:00:12]} 7. Be2 {[%emt 0:02:50]} c5 {[%emt 0:01:00]} 8. d4 {[%emt 0:00:59]} cxd4 {[%emt 0:04:02]} 9. Nxd4 {[%emt 0:00:18]} Nc6 {[%emt 0:00:55]} 10. Nxc6 {[%emt 0:02:36]} bxc6 {[%emt 0:00:09]} 11. O-O {[%emt 0:00:13]} Bd7 {[%emt 0:01:46]} 12. Bd2 {[%emt 0:04:21]} Qe7 {[%emt 0:00:10]} 13. Bf3 {[%emt 0:06:55]} Rab8 {[%emt 0:08:32]} 14. Rfe1 {[%emt 0:02:43]} Qe5 {[%emt 0:01:19]} 15. g3 {[%emt 0:09:00]} h5 {[%emt 0:00:30]} 16. a3 {[%emt 0:02:51]} Bd6 {[%emt 0:04:16]} 17. b4 {[%emt 0:10:17]} h4 {[%emt 0:00:58]} 18. e4 {[%emt 0:01:53]} d4 {[%emt 0:00:36]} 19. Bf4 {[%emt 0:01:37]} Qe6 {[%emt 0:04:25]} 20. e5 {[%emt 0:13:08]} dxc3 {[%emt 0:00:46]} 21. exd6 {[%emt 0:00:08]} Qc4 {[%emt 0:04:02]} 22. Be5 {[%emt 0:04:51]} Nd5 {[%emt 0:04:30]} 23. Be2 {[%emt 0:01:02]} Ne3 {[%emt 0:01:38]} 24. fxe3 {[%emt 0:00:57]} Qd5 {[%emt 0:00:17]} 25. Qxc3 {[%emt 0:01:56]} Rfe8 {[%emt 0:00:51]} 26. Bf4 {[%emt 0:06:14]} hxg3 {[%emt 0:02:44]} 27. Bxg3 {[%emt 0:01:36]} a5 {[%emt 0:03:29]} 28. Bc4 {[%emt 0:03:27]} Qg5 {[%emt 0:00:51]} 29. Qd4 {[%emt 0:01:51]} axb4 {[%emt 0:00:27]} 30. axb4 {[%emt 0:00:01]} Rbd8 {[%emt 0:01:36]} 31. Qh4 {[%emt 0:06:08]} Qg6 {[%emt 0:00:18]} 32. Rf1 {[%emt 0:01:23]} Be6 {[%emt 0:02:27]} 33. Bxe6 {[%emt 0:00:07]} Qxe6 {[%emt 0:00:07]} 34. Qf4 {[%emt 0:00:24]} Rd7 {[%emt 0:02:12]} 35. Rf2 {[%emt 0:00:05]} Qg6 {[%emt 0:00:13]} 36. Qf5 {[%emt 0:00:27]} Rxd6 {[%emt 0:00:07]} 37. Qxf7+ {[%emt 0:05:07]} Qxf7 {[%emt 0:00:43]} 38. Rxf7 {[%emt 0:00:01]} Rd3 {[%emt 0:02:38]} 39. Raa7 {[%emt 0:00:24]} Rexe3 {[%emt 0:01:10]} 40. Rxg7+ {[%emt 0:00:05]} Kh8 {[%emt 0:01:15]} 41. Rgc7 {[%emt 0:02:02]} Rd1+ {[%emt 0:01:50]} 42. Kf2 {[%emt 0:01:31]} Re8 {[%emt 0:00:06]} 43. Be5+ {[%emt 0:00:26]} 1-0

[Event "84th ESP-ch 2019"]
[Site "Marbella"]
[Date "2019.11.20"]
[Round "5.30"]
[White "Silva Lucena, Cristian"]
[Black "Antonano Fedz-Quincoces, Avelino"]
[Result "0-1"]
[ECO "A04"]
[WhiteElo "2244"]
[BlackElo "2021"]
[Annotator "ChessBase"]
[PlyCount "94"]
[EventDate "2019.11.16"]
[EventType "swiss"]
[EventCountry "ESP"]
[SourceTitle "playchess.com"]
[Source "ChessBase"]
[SourceQuality "1"]
[TimeControl "5400+30"]

1. Nf3 {[%emt 0:00:00]} c5 {[%emt 0:00:00]} 2. c4 {[%emt 0:00:00]} Nc6 {[%emt 0:00:10]} 3. b3 {[%emt 0:00:00]} e5 {[%emt 0:01:58]} 4. Bb2 {[%emt 0:00:00]} d6 {[%emt 0:00:08]} 5. g3 {[%emt 0:00:26]} g6 {[%emt 0:01:03]} 6. Bg2 {[%emt 0:00:10]} Bg7 {[%emt 0:00:12]} 7. O-O {[%emt 0:00:08]} Nge7 {[%emt 0:00:08]} 8. e3 {[%emt 0:00:56]} O-O {[%emt 0:00:19]} 9. Nc3 {[%emt 0:01:36]} Bg4 {[%emt 0:05:55]} 10. h3 {[%emt 0:01:40]} Bd7 {[%emt 0:00:12]} 11. d3 {[%emt 0:02:23]} f5 {[%emt 0:03:05]} 12. Nd2 {[%emt 0:01:03]} Nb4 {[%emt 0:03:46]} 13. Qe2 {[%emt 0:01:04]} Bc6 {[%emt 0:00:59]} 14. Nf3 {[%emt 0:00:29]} a5 {[%emt 0:08:02]} 15. a3 {[%emt 0:06:54]} Na6 {[%emt 0:04:12]} 16. d4 {[%emt 0:02:57]} Bxf3 {[%emt 0:20:26]} 17. Qxf3 {[%emt 0:04:47]} e4 {[%emt 0:00:18]} 18. Qd1 {[%emt 0:00:25]} Nc6 {[%emt 0:02:45]} 19. d5 {[%emt 0:02:46]} Ne5 {[%emt 0:00:57]} 20. Qc2 {[%emt 0:00:28]} Nd3 21. Rfd1 {[%emt 0:00:59]} Nab4 {[%emt 0:05:48]} 22. Qb1 {[%emt 0:07:39]} Qf6 {[%emt 0:02:42]} 23. axb4 {[%emt 0:05:25]} Nxb2 {[%emt 0:00:51]} 24. Qxb2 {[%emt 0:00:15]} axb4 {[%emt 0:02:54]} 25. Na4 {[%emt 0:01:54]} Qxb2 {[%emt 0:00:18]} 26. Nxb2 {[%emt 0:00:01]} Bxb2 {[%emt 0:00:16]} 27. Rxa8 {[%emt 0:01:03]} Rxa8 {[%emt 0:00:11]} 28. Rb1 {[%emt 0:00:03]} Be5 {[%emt 0:07:16]} 29. Bf1 {[%emt 0:00:30]} Kf7 {[%emt 0:00:55]} 30. Be2 {[%emt 0:00:19]} Ra2 {[%emt 0:00:26]} 31. Kf1 {[%emt 0:00:05]} Kf6 {[%emt 0:00:24]} 32. h4 {[%emt 0:00:08]} h6 {[%emt 0:00:44]} 33. Bd1 {[%emt 0:00:04]} Rd2 {[%emt 0:03:21]} 34. Be2 {[%emt 0:00:39]} Bc3 {[%emt 0:02:04]} 35. Bd1 {[%emt 0:00:26]} Ke5 {[%emt 0:00:33]} 36. Be2 {[%emt 0:00:01]} g5 {[%emt 0:00:33]} 37. hxg5 {[%emt 0:01:35]} hxg5 {[%emt 0:00:10]} 38. Bh5 {[%emt 0:00:04]} f4 {[%emt 0:02:47]} 39. g4 {[%emt 0:01:06]} fxe3 {[%emt 0:01:31]} 40. fxe3 {[%emt 0:00:02]} Rh2 {[%emt 0:01:05]} 41. Kg1 {[%emt 0:00:01]} Re2 {[%emt 0:02:44]} 42. Rf1 {[%emt 0:00:01]} Rxe3 {[%emt 0:00:29]} 43. Rf5+ {[%emt 0:00:01]} Kd4 {[%emt 0:00:25]} 44. Rxg5 {[%emt 0:00:02]} Kd3 {[%emt 0:01:16]} 45. Rf5 {[%emt 0:01:03]} Bd4 {[%emt 0:01:10]} 46. Kf1 {[%emt 0:00:40]} Rf3+ {[%emt 0:01:07]} 47. Kg2 {[%emt 0:00:54]} Kc3 {[%emt 0:02:27]} 0-1

[Event "84th ESP-ch 2019"]
[Site "Marbella"]
[Date "2019.11.20"]
[Round "5.31"]
[White "Rey Malde, Henrique"]
[Black "Ruiz Bellon, Manuel"]
[Result "1-0"]
[ECO "B03"]
[WhiteElo "2209"]
[BlackElo "1994"]
[Annotator "ChessBase"]
[PlyCount "41"]
[EventDate "2019.11.16"]
[EventType "swiss"]
[EventCountry "ESP"]
[SourceTitle "playchess.com"]
[Source "ChessBase"]
[SourceQuality "1"]
[TimeControl "5400+30"]

1. e4 {[%emt 0:00:00]} Nf6 {[%emt 0:00:00]} 2. e5 {[%emt 0:00:00]} Nd5 {[%emt 0:00:00]} 3. c4 {[%emt 0:00:00]} Nb6 {[%emt 0:00:02]} 4. d4 {[%emt 0:00:00]} d6 {[%emt 0:00:06]} 5. exd6 {[%emt 0:00:00]} cxd6 {[%emt 0:00:08]} 6. Nc3 {[%emt 0:00:10]} g6 {[%emt 0:00:09]} 7. Be3 {[%emt 0:00:14]} Bg7 {[%emt 0:00:08]} 8. Rc1 {[%emt 0:00:06]} Nc6 {[%emt 0:00:21]} 9. b3 {[%emt 0:03:22]} O-O {[%emt 0:00:38]} 10. d5 {[%emt 0:00:26]} Ne5 {[%emt 0:03:31]} 11. Be2 {[%emt 0:00:09]} a5 {[%emt 0:10:22]} 12. f4 {[%emt 0:06:23]} Ned7 {[%emt 0:00:27]} 13. Nf3 {[%emt 0:00:06]} Nc5 {[%emt 0:02:42]} 14. Nd4 {[%emt 0:02:15]} e5 {[%emt 0:24:36]} 15. dxe6 {[%emt 0:06:42]} Bxe6 {[%emt 0:07:37]} 16. O-O {[%emt 0:02:54]} Qe7 {[%emt 0:03:00]} 17. Bf2 {[%emt 0:07:16]} d5 {[%emt 0:00:56]} 18. cxd5 {[%emt 0:22:08]} Nxd5 {[%emt 0:08:25]} 19. Nf5 {[%emt 0:05:20]} Qd7 {[%emt 0:08:12]} 20. Nxd5 {[%emt 0:07:06]} gxf5 {[%emt 0:02:40]} 21. Rxc5 1-0

[Event "84th ESP-ch 2019"]
[Site "Marbella"]
[Date "2019.11.20"]
[Round "5.32"]
[White "Martinez Piqueras, Carlos"]
[Black "Perez Guerra, Alberto"]
[Result "0-1"]
[ECO "C45"]
[WhiteElo "2206"]
[BlackElo "1988"]
[Annotator "ChessBase"]
[PlyCount "102"]
[EventDate "2019.11.16"]
[EventType "swiss"]
[EventCountry "ESP"]
[SourceTitle "playchess.com"]
[Source "ChessBase"]
[SourceQuality "1"]
[TimeControl "5400+30"]

1. e4 {[%emt 0:00:00]} e5 {[%emt 0:00:00]} 2. Nf3 {[%emt 0:00:00]} Nc6 {[%emt 0:00:00]} 3. d4 {[%emt 0:00:46]} exd4 {[%emt 0:00:00]} 4. Nxd4 {[%emt 0:00:06]} Bc5 {[%emt 0:00:00]} 5. Nb3 {[%emt 0:01:53]} Bb6 {[%emt 0:00:00]} 6. Nc3 {[%emt 0:00:07]} Nf6 {[%emt 0:00:30]} 7. Qe2 {[%emt 0:00:08]} O-O {[%emt 0:00:08]} 8. Be3 {[%emt 0:00:41]} d5 {[%emt 0:00:41]} 9. O-O-O {[%emt 0:03:43]} d4 {[%emt 0:00:07]} 10. Bg5 {[%emt 0:00:11]} Qd6 {[%emt 0:00:54]} 11. Kb1 {[%emt 0:08:21]} Ng4 {[%emt 0:06:14]} 12. Nd5 {[%emt 0:08:33]} Be6 {[%emt 0:02:57]} 13. h3 {[%emt 0:20:08]} Nge5 {[%emt 0:02:36]} 14. f4 {[%emt 0:00:29]} d3 {[%emt 0:04:23]} 15. cxd3 {[%emt 0:02:20]} Nd7 {[%emt 0:00:02]} 16. d4 {[%emt 0:19:21]} Bxd5 {[%emt 0:00:26]} 17. exd5 {[%emt 0:00:05]} Rfe8 {[%emt 0:00:21]} 18. Qf3 {[%emt 0:12:28]} Nb4 {[%emt 0:00:10]} 19. Bc4 {[%emt 0:00:06]} a5 {[%emt 0:10:46]} 20. Nc1 {[%emt 0:02:18]} Nf6 {[%emt 0:01:14]} 21. Bxf6 {[%emt 0:08:43]} Qxf6 {[%emt 0:00:01]} 22. a3 {[%emt 0:00:17]} Qf5+ {[%emt 0:02:05]} 23. Nd3 {[%emt 0:00:32]} Nxd3 {[%emt 0:00:58]} 24. Bxd3 {[%emt 0:05:10]} Qf6 {[%emt 0:00:01]} 25. g4 {[%emt 0:00:09]} Bxd4 {[%emt 0:01:34]} 26. g5 {[%emt 0:01:46]} Qb6 {[%emt 0:00:01]} 27. Rh2 {[%emt 0:03:07]} Re3 {[%emt 0:01:11]} 28. Qg2 {[%emt 0:00:19]} Bc5 {[%emt 0:13:49]} 29. Qc2 {[%emt 0:00:48]} Bxa3 {[%emt 0:03:08]} 30. Bxh7+ Kh8 31. Bd3 {[%emt 0:01:39]} Bd6 {[%emt 0:00:02]} 32. Qf2 {[%emt 0:00:34]} Kg8 {[%emt 0:02:35]} 33. g6 {[%emt 0:00:27]} Qd4 {[%emt 0:08:47]} 34. gxf7+ Kf8 35. Bc2 {[%emt 0:01:11]} Qxf4 {[%emt 0:01:27]} 36. Qxf4 {[%emt 0:00:01]} Bxf4 {[%emt 0:00:20]} 37. Rf2 {[%emt 0:00:16]} Be5 {[%emt 0:02:57]} 38. Bg6 {[%emt 0:01:07]} Ra6 {[%emt 0:03:05]} 39. Bf5 {[%emt 0:00:58]} Rf6 {[%emt 0:00:38]} 40. Rdf1 {[%emt 0:00:13]} Kxf7 {[%emt 0:00:48]} 41. Be6+ {[%emt 0:00:04]} Ke7 {[%emt 0:00:35]} 42. Rxf6 {[%emt 0:00:04]} Bxf6 {[%emt 0:00:14]} 43. Rc1 {[%emt 0:00:13]} Kd6 {[%emt 0:00:49]} 44. Bc8 {[%emt 0:00:14]} Rb3 {[%emt 0:00:23]} 45. Rc2 {[%emt 0:01:09]} Kxd5 {[%emt 0:02:17]} 46. Rxc7 {[%emt 0:00:07]} Rxb2+ {[%emt 0:00:17]} 47. Kc1 {[%emt 0:00:02]} b5 {[%emt 0:01:44]} 48. Bb7+ {[%emt 0:00:09]} Ke5 {[%emt 0:01:51]} 49. Ba6 {[%emt 0:02:41]} Kd6 {[%emt 0:00:57]} 50. Rf7 {[%emt 0:00:43]} Rf2 {[%emt 0:03:37]} 51. Kb1 {[%emt 0:00:28]} a4 {[%emt 0:00:30]} 0-1

[Event "84th ESP-ch 2019"]
[Site "Marbella"]
[Date "2019.11.20"]
[Round "5.33"]
[White "Perera Borrego, Maria Adela"]
[Black "Viciano Barrachina, Aitor"]
[Result "1-0"]
[ECO "A85"]
[WhiteElo "2201"]
[BlackElo "1954"]
[Annotator "ChessBase"]
[PlyCount "63"]
[EventDate "2019.11.16"]
[EventType "swiss"]
[EventCountry "ESP"]
[SourceTitle "playchess.com"]
[Source "ChessBase"]
[SourceQuality "1"]
[TimeControl "5400+30"]

1. d4 {[%emt 0:00:00]} f5 {[%emt 0:01:05]} 2. c4 {[%emt 0:00:00]} Nf6 {[%emt 0:00:37]} 3. Nc3 {[%emt 0:00:00]} d6 {[%emt 0:00:57]} 4. Nf3 {[%emt 0:00:00]} g6 {[%emt 0:00:16]} 5. g3 {[%emt 0:00:28]} Bg7 {[%emt 0:00:22]} 6. Bg2 {[%emt 0:00:13]} O-O {[%emt 0:00:25]} 7. O-O {[%emt 0:00:41]} Qe8 {[%emt 0:01:16]} 8. b3 {[%emt 0:04:08]} e5 {[%emt 0:05:07]} 9. dxe5 {[%emt 0:06:02]} dxe5 {[%emt 0:03:19]} 10. e4 c6 {[%emt 0:18:50]} 11. Re1 {[%emt 0:11:35]} Nfd7 {[%emt 0:09:14]} 12. Ba3 {[%emt 0:01:30]} Rf6 {[%emt 0:01:23]} 13. Qd2 {[%emt 0:06:46]} Na6 {[%emt 0:09:31]} 14. Rad1 {[%emt 0:00:51]} f4 {[%emt 0:04:22]} 15. Qc2 {[%emt 0:25:51]} h6 {[%emt 0:07:58]} 16. gxf4 {[%emt 0:02:07]} Rxf4 {[%emt 0:00:56]} 17. Ne2 {[%emt 0:00:28]} Rf6 {[%emt 0:02:55]} 18. Ng3 {[%emt 0:03:02]} c5 {[%emt 0:06:09]} 19. Nf1 {[%emt 0:08:08]} Qf7 {[%emt 0:03:50]} 20. Qe2 {[%emt 0:02:36]} Nc7 {[%emt 0:03:08]} 21. Ne3 {[%emt 0:01:23]} Rf4 {[%emt 0:05:42]} 22. Nd5 {[%emt 0:02:25]} Nxd5 {[%emt 0:00:03]} 23. Rxd5 {[%emt 0:00:25]} g5 {[%emt 0:02:30]} 24. Bb2 {[%emt 0:02:19]} b6 {[%emt 0:02:16]} 25. Red1 {[%emt 0:02:43]} Kh7 {[%emt 0:00:15]} 26. Bc1 {[%emt 0:07:29]} Rf6 {[%emt 0:02:39]} 27. Rxd7 {[%emt 0:02:38]} Bxd7 {[%emt 0:05:16]} 28. Nxe5 {[%emt 0:00:14]} Qe7 {[%emt 0:00:31]} 29. Nxd7 {[%emt 0:00:43]} Rd6 {[%emt 0:00:31]} 30. Rxd6 {[%emt 0:01:03]} Qxd6 {[%emt 0:00:01]} 31. e5 {[%emt 0:00:27]} Re8 {[%emt 0:02:01]} 32. Be4+ {[%emt 0:00:16]} 1-0

[Event "84th ESP-ch 2019"]
[Site "Marbella"]
[Date "2019.11.20"]
[Round "5.34"]
[White "Munoz Suarez, Luis Alberto"]
[Black "Rodriguez Redondo, Adhara"]
[Result "0-1"]
[ECO "C31"]
[WhiteElo "1944"]
[BlackElo "2199"]
[Annotator "ChessBase"]
[PlyCount "52"]
[EventDate "2019.11.16"]
[EventType "swiss"]
[EventCountry "ESP"]
[SourceTitle "playchess.com"]
[Source "ChessBase"]
[SourceQuality "1"]
[TimeControl "5400+30"]

1. e4 {[%emt 0:02:03]} e5 {[%emt 0:00:00]} 2. f4 {[%emt 0:00:07]} d5 {[%emt 0:00:00]} 3. Nf3 {[%emt 0:00:21]} exf4 {[%emt 0:05:57]} 4. e5 {[%emt 0:00:20]} Be7 {[%emt 0:04:38]} 5. d4 {[%emt 0:16:21]} Bh4+ {[%emt 0:10:59]} 6. Ke2 Bg4 {[%emt 0:07:39]} 7. Bxf4 {[%emt 0:05:08]} Qd7 {[%emt 0:03:12]} 8. Qd3 {[%emt 0:07:00]} Nc6 {[%emt 0:06:24]} 9. c3 {[%emt 0:07:05]} O-O-O {[%emt 0:05:58]} 10. Kd2 {[%emt 0:05:20]} Be7 {[%emt 0:07:45]} 11. h3 {[%emt 0:10:34]} Bf5 {[%emt 0:03:39]} 12. Qe3 {[%emt 0:03:49]} f6 {[%emt 0:03:09]} 13. Bb5 {[%emt 0:04:06]} Be4 {[%emt 0:06:47]} 14. a4 {[%emt 0:05:49]} Qe6 {[%emt 0:06:21]} 15. Na3 {[%emt 0:07:47]} Na5 {[%emt 0:03:41]} 16. Rae1 {[%emt 0:01:52]} Nb3+ {[%emt 0:02:20]} 17. Ke2 {[%emt 0:02:44]} g5 {[%emt 0:04:19]} 18. Bh2 {[%emt 0:03:27]} Nh6 {[%emt 0:09:14]} 19. Bd3 {[%emt 0:07:21]} f5 {[%emt 0:01:35]} 20. Nd2 {[%emt 0:04:31]} Nxd2 {[%emt 0:01:19]} 21. Kxd2 {[%emt 0:02:02]} Bxg2 {[%emt 0:00:52]} 22. Rhg1 {[%emt 0:00:11]} f4 {[%emt 0:01:02]} 23. Qf2 {[%emt 0:00:54]} Bxh3 {[%emt 0:00:15]} 24. b4 {[%emt 0:00:34]} Bf5 {[%emt 0:01:02]} 25. Nc2 {[%emt 0:00:44]} Bxd3 {[%emt 0:01:09]} 26. Kxd3 {[%emt 0:00:07]} Qh3+ {[%emt 0:00:52]} 0-1

[Event "84th ESP-ch 2019"]
[Site "Marbella"]
[Date "2019.11.20"]
[Round "5.35"]
[White "Castellanos Bogalo, Antonio"]
[Black "Garcia Vicente, Nieves"]
[Result "0-1"]
[ECO "C47"]
[WhiteElo "1915"]
[BlackElo "2175"]
[Annotator "ChessBase"]
[PlyCount "82"]
[EventDate "2019.11.16"]
[EventType "swiss"]
[EventCountry "ESP"]
[SourceTitle "playchess.com"]
[Source "ChessBase"]
[SourceQuality "1"]
[TimeControl "5400+30"]

1. e4 {[%emt 0:00:55]} e5 {[%emt 0:00:00]} 2. Nf3 {[%emt 0:01:05]} Nc6 {[%emt 0:00:00]} 3. Nc3 {[%emt 0:00:45]} Nf6 {[%emt 0:00:29]} 4. d4 {[%emt 0:00:11]} exd4 {[%emt 0:00:41]} 5. Nd5 {[%emt 0:00:07]} Be7 {[%emt 0:00:52]} 6. Bc4 {[%emt 0:04:27]} O-O {[%emt 0:00:52]} 7. O-O {[%emt 0:00:15]} d6 {[%emt 0:01:38]} 8. Nxd4 {[%emt 0:00:31]} Nxd4 {[%emt 0:01:51]} 9. Qxd4 {[%emt 0:00:20]} Nxd5 {[%emt 0:00:13]} 10. Bxd5 {[%emt 0:00:33]} Bf6 {[%emt 0:00:20]} 11. Qd3 {[%emt 0:00:28]} a5 {[%emt 0:03:23]} 12. a4 {[%emt 0:03:37]} c6 {[%emt 0:03:59]} 13. Bc4 {[%emt 0:05:02]} Be6 {[%emt 0:07:01]} 14. Rd1 Re8 {[%emt 0:08:28]} 15. Ra3 {[%emt 0:31:49]} Bxc4 {[%emt 0:04:19]} 16. Qxc4 {[%emt 0:01:11]} Qe7 {[%emt 0:00:12]} 17. f3 {[%emt 0:08:51]} d5 {[%emt 0:04:00]} 18. exd5 {[%emt 0:02:55]} cxd5 {[%emt 0:00:09]} 19. Qd3 {[%emt 0:04:16]} Qb4 {[%emt 0:05:22]} 20. Be3 {[%emt 0:15:23]} Rac8 {[%emt 0:04:04]} 21. c3 {[%emt 0:01:30]} Qxb2 {[%emt 0:02:51]} 22. Bc1 {[%emt 0:02:02]} Qb6+ {[%emt 0:06:01]} 23. Kf1 {[%emt 0:01:35]} h6 {[%emt 0:04:04]} 24. Bf4 {[%emt 0:03:49]} Qc6 {[%emt 0:13:28]} 25. Bg3 {[%emt 0:07:49]} Bxc3 {[%emt 0:03:11]} 26. Qxd5 {[%emt 0:00:54]} Rcd8 {[%emt 0:01:11]} 27. Qxd8 {[%emt 0:00:36]} Rxd8 {[%emt 0:00:55]} 28. Rxd8+ {[%emt 0:00:01]} Kh7 {[%emt 0:00:17]} 29. Rd3 {[%emt 0:00:24]} Bb4 {[%emt 0:01:22]} 30. Ra1 {[%emt 0:01:03]} Qc4 {[%emt 0:01:23]} 31. Rad1 {[%emt 0:01:22]} Bc5 {[%emt 0:01:17]} 32. Be1 {[%emt 0:00:55]} Qxa4 {[%emt 0:01:42]} 33. g3 {[%emt 0:00:36]} b6 {[%emt 0:00:42]} 34. Rd7 {[%emt 0:00:24]} Qc4+ {[%emt 0:00:52]} 35. R1d3 {[%emt 0:00:35]} a4 {[%emt 0:01:11]} 36. Kg2 {[%emt 0:00:22]} a3 {[%emt 0:02:21]} 37. Bc3 {[%emt 0:00:19]} a2 {[%emt 0:04:47]} 38. Ba1 {[%emt 0:00:09]} b5 {[%emt 0:02:45]} 39. h4 {[%emt 0:01:18]} b4 {[%emt 0:00:29]} 40. Kh3 {[%emt 0:00:52]} b3 {[%emt 0:01:29]} 41. Be5 {[%emt 0:00:41]} Qe6+ {[%emt 0:00:25]} 0-1